[Event "Titled Tuesday Blitz February 21 Early 2023"]
[White "Bas Mas, Jose Joaquin"]
[Black "Sharapov, Evgeny"]
[WhiteFideId "22219064"]
[BlackFideId "14103133"]
[WhiteElo "2197"]
[BlackElo "2375"]
[Result "1-0"]
[Round "11"]
[TimeControl "180+2"]
[Date "2023.02.21"]
[WhiteClock "0:00:40"]
[BlackClock "0:00:06"]

1. e4 {[%clk 0:03:00]}  c5 {[%clk 0:02:57]} 2. Nc3 {[%clk 0:03:00]}  Nc6 {[%clk 0:02:57]} 3. Bb5 {[%clk 0:03:00]}  Nd4 {[%clk 0:02:56]} 4. Nf3 {[%clk 0:03:00]}  g6 {[%clk 0:02:54]} 5. Kf1 {[%clk 0:02:59]}  Bg7 {[%clk 0:02:53]} 6. Bd3 {[%clk 0:02:58]}  e6 {[%clk 0:02:52]} 7. g3 {[%clk 0:02:57]}  Ne7 {[%clk 0:02:51]} 8. Kg2 {[%clk 0:02:57]}  O-O {[%clk 0:02:51]} 9. h4 {[%clk 0:02:57]}  h5 {[%clk 0:02:50]} 10. Nxd4 {[%clk 0:02:54]}  cxd4 {[%clk 0:02:50]} 11. Ne2 {[%clk 0:02:54]}  d5 {[%clk 0:02:49]} 12. f3 {[%clk 0:02:44]}  b6 {[%clk 0:02:47]} 13. b3 {[%clk 0:02:42]}  Bb7 {[%clk 0:02:47]} 14. Bb2 {[%clk 0:02:42]}  dxe4 {[%clk 0:02:46]} 15. fxe4 {[%clk 0:02:43]}  f5 {[%clk 0:02:42]} 16. Nf4 {[%clk 0:02:42]}  fxe4 {[%clk 0:02:39]} 17. Bc4 {[%clk 0:02:42]}  Qd6 {[%clk 0:02:28]} 18. Rg1 {[%clk 0:02:21]}  Bd5 {[%clk 0:02:20]} 19. Rf1 {[%clk 0:02:16]}  Bxc4 {[%clk 0:02:18]} 20. bxc4 {[%clk 0:02:17]}  e5 {[%clk 0:02:11]} 21. Nh3 {[%clk 0:02:13]}  Qc6 {[%clk 0:02:01]} 22. Qe2 {[%clk 0:02:12]}  Nf5 {[%clk 0:01:49]} 23. Ba3 {[%clk 0:01:58]}  Rfc8 {[%clk 0:01:45]} 24. Rxf5 {[%clk 0:01:55]}  gxf5 {[%clk 0:01:42]} 25. Qxh5 {[%clk 0:01:54]}  Qh6 {[%clk 0:01:30]} 26. Qxf5 {[%clk 0:01:49]}  Qxd2+ {[%clk 0:01:26]} 27. Kh1 {[%clk 0:01:47]}  Rf8 {[%clk 0:01:15]} 28. Bxf8 {[%clk 0:01:40]}  Rxf8 {[%clk 0:01:15]} 29. Qe6+ {[%clk 0:01:40]}  Kh8 {[%clk 0:01:14]} 30. Ng5 {[%clk 0:01:38]}  Qe2 {[%clk 0:00:46]} 31. Qg6 {[%clk 0:01:29]}  Rf1+ {[%clk 0:00:37]} 32. Rxf1 {[%clk 0:01:27]}  Qxf1+ {[%clk 0:00:37]} 33. Kh2 {[%clk 0:01:28]}  Qf2+ {[%clk 0:00:23]} 34. Kh3 {[%clk 0:01:27]}  Qf1+ {[%clk 0:00:23]} 35. Kg4 {[%clk 0:01:26]}  Kg8 {[%clk 0:00:20]} 36. Qe6+ {[%clk 0:01:04]}  Kh8 {[%clk 0:00:17]} 37. Qe8+ {[%clk 0:01:00]}  Bf8 {[%clk 0:00:12]} 38. Qxe5+ {[%clk 0:00:55]}  Kg8 {[%clk 0:00:11]} 39. Qe6+ {[%clk 0:00:52]}  Kg7 {[%clk 0:00:10]} 40. Qxe4 {[%clk 0:00:48]}  Qd1+ {[%clk 0:00:07]} 41. Kf5 {[%clk 0:00:45]}  Qf1+ {[%clk 0:00:07]} 42. Qf3 {[%clk 0:00:42]}  Qxc4 {[%clk 0:00:06]} 43. Qb7+ {[%clk 0:00:40]} 1-0


[Site "https://www.chess.com"]

[Event "Titled Tuesday Blitz February 21 Early 2023"]
[White "Iljin, Timofey"]
[Black "Demchenko, Anton"]
[WhiteFideId "14110180"]
[BlackFideId "4160258"]
[WhiteElo "2329"]
[BlackElo "2623"]
[Result "0-1"]
[Round "11"]
[TimeControl "180+2"]
[Date "2023.02.21"]
[WhiteClock "0:00:16"]
[BlackClock "0:00:40"]

1. e4 {[%clk 0:03:00]}  c5 {[%clk 0:02:58]} 2. c3 {[%clk 0:03:00]}  Nf6 {[%clk 0:02:57]} 3. e5 {[%clk 0:03:00]}  Nd5 {[%clk 0:02:58]} 4. d4 {[%clk 0:03:01]}  cxd4 {[%clk 0:02:58]} 5. cxd4 {[%clk 0:03:02]}  d6 {[%clk 0:02:58]} 6. Nf3 {[%clk 0:03:03]}  dxe5 {[%clk 0:02:55]} 7. Nxe5 {[%clk 0:03:02]}  e6 {[%clk 0:02:55]} 8. Bb5+ {[%clk 0:03:01]}  Nd7 {[%clk 0:02:52]} 9. Nxd7 {[%clk 0:03:01]}  Bxd7 {[%clk 0:02:52]} 10. Bxd7+ {[%clk 0:03:01]}  Qxd7 {[%clk 0:02:52]} 11. O-O {[%clk 0:03:02]}  Be7 {[%clk 0:02:51]} 12. Nc3 {[%clk 0:03:03]}  O-O {[%clk 0:02:48]} 13. Bd2 {[%clk 0:03:03]}  Rfd8 {[%clk 0:02:47]} 14. Qf3 {[%clk 0:03:04]}  Bf6 {[%clk 0:02:42]} 15. Be3 {[%clk 0:02:59]}  Rac8 {[%clk 0:02:40]} 16. Ne4 {[%clk 0:02:58]}  b6 {[%clk 0:02:34]} 17. Rfd1 {[%clk 0:02:56]}  Be7 {[%clk 0:02:33]} 18. h3 {[%clk 0:02:53]}  h6 {[%clk 0:02:30]} 19. Rac1 {[%clk 0:02:51]}  Bf8 {[%clk 0:02:09]} 20. Qg3 {[%clk 0:02:44]}  Kh8 {[%clk 0:01:52]} 21. Qe5 {[%clk 0:02:40]}  Rxc1 {[%clk 0:01:45]} 22. Rxc1 {[%clk 0:02:39]}  f5 {[%clk 0:01:46]} 23. Bxh6 {[%clk 0:02:15]}  fxe4 {[%clk 0:01:45]} 24. Bg5 {[%clk 0:02:15]}  Rc8 {[%clk 0:01:41]} 25. Rxc8 {[%clk 0:02:14]}  Qxc8 {[%clk 0:01:41]} 26. Qxe4 {[%clk 0:02:14]}  Kg8 {[%clk 0:01:36]} 27. h4 {[%clk 0:02:12]}  Qe8 {[%clk 0:01:30]} 28. g4 {[%clk 0:02:06]}  Qf7 {[%clk 0:01:28]} 29. h5 {[%clk 0:02:05]}  Bd6 {[%clk 0:01:27]} 30. Kg2 {[%clk 0:01:57]}  Bf4 {[%clk 0:01:26]} 31. Bxf4 {[%clk 0:01:56]}  Nxf4+ {[%clk 0:01:26]} 32. Kh2 {[%clk 0:01:55]}  Nd5 {[%clk 0:01:25]} 33. Kg2 {[%clk 0:01:52]}  Qf6 {[%clk 0:01:23]} 34. a3 {[%clk 0:01:38]}  Kf8 {[%clk 0:01:21]} 35. b4 {[%clk 0:01:35]}  Ke7 {[%clk 0:01:21]} 36. b5 {[%clk 0:01:34]}  Kd7 {[%clk 0:01:08]} 37. Kg3 {[%clk 0:01:33]}  Qe7 {[%clk 0:01:02]} 38. f4 {[%clk 0:01:22]}  Qxa3+ {[%clk 0:01:02]} 39. Kh4 {[%clk 0:01:22]}  Qe7+ {[%clk 0:01:03]} 40. g5 {[%clk 0:01:22]}  Qf8 {[%clk 0:01:01]} 41. Kg4 {[%clk 0:01:18]}  Qf7 {[%clk 0:00:55]} 42. g6 {[%clk 0:00:26]}  Qf5+ {[%clk 0:00:43]} 43. Kf3 {[%clk 0:00:18]}  Qxh5+ {[%clk 0:00:43]} 44. Kf2 {[%clk 0:00:17]}  Qh4+ {[%clk 0:00:42]} 45. Kg1 {[%clk 0:00:15]}  Qg3+ {[%clk 0:00:42]} 46. Kh1 {[%clk 0:00:15]}  Qxf4 {[%clk 0:00:41]} 47. Qc2 {[%clk 0:00:16]}  Qh4+ {[%clk 0:00:40]} 48. Kg2 {[%clk 0:00:16]}  Ne3+ {[%clk 0:00:40]} 0-1


[Site "https://www.chess.com"]

[Event "Titled Tuesday Blitz February 21 Early 2023"]
[White "Poeta, Caio Medeiros"]
[Black "Yurovskykh, Oleksandr"]
[WhiteFideId "2142660"]
[BlackFideId "14134020"]
[WhiteElo "2088"]
[BlackElo "2328"]
[Result "0-1"]
[Round "11"]
[TimeControl "180+2"]
[Date "2023.02.21"]
[WhiteClock "0:00:30"]
[BlackClock "0:00:28"]

1. d4 {[%clk 0:03:00]}  d5 {[%clk 0:02:48]} 2. c4 {[%clk 0:02:59]}  dxc4 {[%clk 0:02:41]} 3. Nf3 {[%clk 0:02:58]}  Nf6 {[%clk 0:02:41]} 4. g3 {[%clk 0:02:58]}  b5 {[%clk 0:02:41]} 5. Bg2 {[%clk 0:02:58]}  Bb7 {[%clk 0:02:41]} 6. O-O {[%clk 0:02:59]}  e6 {[%clk 0:02:39]} 7. a4 {[%clk 0:02:58]}  a6 {[%clk 0:02:39]} 8. b3 {[%clk 0:02:58]}  Nbd7 {[%clk 0:02:32]} 9. bxc4 {[%clk 0:02:56]}  bxc4 {[%clk 0:02:32]} 10. Qc2 {[%clk 0:02:55]}  c5 {[%clk 0:02:30]} 11. dxc5 {[%clk 0:02:54]}  Bxc5 {[%clk 0:02:28]} 12. Qxc4 {[%clk 0:02:54]}  O-O {[%clk 0:02:27]} 13. Bb2 {[%clk 0:02:54]}  Qe7 {[%clk 0:02:25]} 14. Nc3 {[%clk 0:02:48]}  Rfc8 {[%clk 0:02:24]} 15. Qh4 {[%clk 0:02:48]}  Rab8 {[%clk 0:02:18]} 16. Rab1 {[%clk 0:02:38]}  Nf8 {[%clk 0:02:13]} 17. Rfc1 {[%clk 0:02:16]}  Ng6 {[%clk 0:02:09]} 18. Qg5 {[%clk 0:02:16]}  Bxf2+ {[%clk 0:01:58]} 19. Kxf2 {[%clk 0:02:16]}  Rxc3 {[%clk 0:01:58]} 20. Qa5 {[%clk 0:01:48]}  Rxc1 {[%clk 0:01:31]} 21. Bxc1 {[%clk 0:01:49]}  Rc8 {[%clk 0:01:18]} 22. Bg5 {[%clk 0:01:38]}  Ne4+ {[%clk 0:01:15]} 23. Kg1 {[%clk 0:01:33]}  Nxg5 {[%clk 0:01:15]} 24. Nxg5 {[%clk 0:01:29]}  Bxg2 {[%clk 0:01:14]} 25. Kxg2 {[%clk 0:01:30]}  Rc5 {[%clk 0:01:04]} 26. Rb8+ {[%clk 0:01:04]}  Nf8 {[%clk 0:01:04]} 27. Qb4 {[%clk 0:00:49]}  Qxg5 {[%clk 0:00:54]} 28. a5 {[%clk 0:00:40]}  Qd5+ {[%clk 0:00:45]} 29. Kh3 {[%clk 0:00:39]}  h6 {[%clk 0:00:36]} 30. Qb6 {[%clk 0:00:31]}  Qh5+ {[%clk 0:00:27]} 31. Kg2 {[%clk 0:00:30]}  Qxe2+ {[%clk 0:00:28]} 32. Kh3 {[%clk 0:00:30]}  Rh5# {[%clk 0:00:28]} 0-1


[Site "https://www.chess.com"]

[Event "Titled Tuesday Blitz February 21 Early 2023"]
[White "Aggelis, Nikolaos"]
[Black "Shuvalov, Evgenij"]
[WhiteFideId "4213220"]
[BlackFideId "4187237"]
[WhiteElo "2270"]
[BlackElo "2038"]
[Result "1-0"]
[Round "11"]
[TimeControl "180+2"]
[Date "2023.02.21"]
[WhiteClock "0:00:26"]
[BlackClock "0:00:20"]

1. c4 {[%clk 0:03:00]}  Nf6 {[%clk 0:02:50]} 2. g3 {[%clk 0:03:00]}  c6 {[%clk 0:02:49]} 3. Bg2 {[%clk 0:03:01]}  d5 {[%clk 0:02:48]} 4. d4 {[%clk 0:02:57]}  g6 {[%clk 0:02:45]} 5. Nf3 {[%clk 0:02:57]}  Bg7 {[%clk 0:02:45]} 6. O-O {[%clk 0:02:57]}  O-O {[%clk 0:02:45]} 7. Nbd2 {[%clk 0:02:58]}  a5 {[%clk 0:02:44]} 8. cxd5 {[%clk 0:02:53]}  cxd5 {[%clk 0:02:43]} 9. Ne5 {[%clk 0:02:53]}  a4 {[%clk 0:02:38]} 10. Ndf3 {[%clk 0:02:50]}  Ne4 {[%clk 0:02:37]} 11. Bf4 {[%clk 0:02:50]}  f6 {[%clk 0:02:36]} 12. Nd3 {[%clk 0:02:49]}  Nc6 {[%clk 0:02:34]} 13. Bd2 {[%clk 0:02:20]}  Qb6 {[%clk 0:02:18]} 14. Bc3 {[%clk 0:02:14]}  Bf5 {[%clk 0:02:00]} 15. e3 {[%clk 0:02:08]}  a3 {[%clk 0:01:57]} 16. Rb1 {[%clk 0:02:08]}  axb2 {[%clk 0:01:48]} 17. Rxb2 {[%clk 0:02:05]}  Qa6 {[%clk 0:01:34]} 18. Bb4 {[%clk 0:01:57]}  b6 {[%clk 0:01:28]} 19. Nh4 {[%clk 0:01:49]}  Rfd8 {[%clk 0:01:16]} 20. Nxf5 {[%clk 0:01:49]}  gxf5 {[%clk 0:01:17]} 21. Nf4 {[%clk 0:01:44]}  Qc8 {[%clk 0:01:08]} 22. Qb3 {[%clk 0:01:39]}  Nxb4 {[%clk 0:01:02]} 23. Qxb4 {[%clk 0:01:39]}  e5 {[%clk 0:01:01]} 24. Nh5 {[%clk 0:01:23]}  Qe6 {[%clk 0:01:01]} 25. Qxb6 {[%clk 0:01:17]}  Qxb6 {[%clk 0:00:59]} 26. Rxb6 {[%clk 0:01:18]}  Rxa2 {[%clk 0:00:59]} 27. Bxe4 {[%clk 0:01:17]}  dxe4 {[%clk 0:00:57]} 28. Nxf6+ {[%clk 0:01:16]}  Bxf6 {[%clk 0:00:57]} 29. Rxf6 {[%clk 0:01:17]}  exd4 {[%clk 0:00:57]} 30. exd4 {[%clk 0:01:17]}  Ra5 {[%clk 0:00:57]} 31. Rd1 {[%clk 0:00:58]}  Kg7 {[%clk 0:00:57]} 32. Rb6 {[%clk 0:00:56]}  Rad5 {[%clk 0:00:56]} 33. Rb4 {[%clk 0:00:56]}  Kg6 {[%clk 0:00:54]} 34. Kg2 {[%clk 0:00:56]}  Kg5 {[%clk 0:00:52]} 35. h4+ {[%clk 0:00:54]}  Kg4 {[%clk 0:00:52]} 36. Rb7 {[%clk 0:00:52]}  R8d7 {[%clk 0:00:49]} 37. Rxd7 {[%clk 0:00:45]}  Rxd7 {[%clk 0:00:50]} 38. Ra1 {[%clk 0:00:32]}  f4 {[%clk 0:00:41]} 39. gxf4 {[%clk 0:00:32]}  Kxh4 {[%clk 0:00:35]} 40. f3 {[%clk 0:00:27]}  Rxd4 {[%clk 0:00:20]} 41. Rh1# {[%clk 0:00:26]} 1-0


[Site "https://www.chess.com"]

[Event "Titled Tuesday Blitz February 21 Early 2023"]
[White "Abdilkhair, Abilmansur"]
[Black "Fiorito, Francisco"]
[WhiteFideId "13716417"]
[BlackFideId "180165"]
[WhiteElo "2268"]
[BlackElo "2305"]
[Result "1-0"]
[Round "11"]
[TimeControl "180+2"]
[Date "2023.02.21"]
[WhiteClock "0:01:17"]
[BlackClock "0:00:14"]

1. d4 {[%clk 0:03:00]}  Nf6 {[%clk 0:02:59]} 2. c4 {[%clk 0:03:01]}  b6 {[%clk 0:02:58]} 3. Nc3 {[%clk 0:03:01]}  Bb7 {[%clk 0:02:57]} 4. d5 {[%clk 0:03:00]}  e5 {[%clk 0:02:53]} 5. e4 {[%clk 0:02:58]}  Bc5 {[%clk 0:02:53]} 6. h3 {[%clk 0:02:52]}  O-O {[%clk 0:02:51]} 7. Nf3 {[%clk 0:02:53]}  d6 {[%clk 0:02:52]} 8. a3 {[%clk 0:02:43]}  a5 {[%clk 0:02:51]} 9. Rb1 {[%clk 0:02:44]}  Na6 {[%clk 0:02:39]} 10. Bg5 {[%clk 0:02:43]}  h6 {[%clk 0:02:37]} 11. Bh4 {[%clk 0:02:42]}  Re8 {[%clk 0:02:37]} 12. Qd2 {[%clk 0:02:38]}  Bc8 {[%clk 0:02:24]} 13. Bd3 {[%clk 0:02:37]}  Kf8 {[%clk 0:02:21]} 14. Ne2 {[%clk 0:02:32]}  a4 {[%clk 0:02:10]} 15. O-O {[%clk 0:02:19]}  Bd7 {[%clk 0:02:10]} 16. Kh1 {[%clk 0:02:13]}  g5 {[%clk 0:02:10]} 17. Nxg5 {[%clk 0:02:12]}  hxg5 {[%clk 0:02:10]} 18. Bxg5 {[%clk 0:01:56]}  Kg7 {[%clk 0:01:45]} 19. Ng3 {[%clk 0:01:50]}  Rh8 {[%clk 0:01:40]} 20. f4 {[%clk 0:01:48]}  Bd4 {[%clk 0:01:36]} 21. Ne2 {[%clk 0:01:37]}  Qe7 {[%clk 0:00:21]} 22. Nxd4 {[%clk 0:01:30]}  exd4 {[%clk 0:00:17]} 23. e5 {[%clk 0:01:30]}  dxe5 {[%clk 0:00:14]} 24. fxe5 {[%clk 0:01:30]}  Qxe5 {[%clk 0:00:15]} 25. Bxf6+ {[%clk 0:01:27]}  Qxf6 {[%clk 0:00:15]} 26. Rxf6 {[%clk 0:01:27]}  Kxf6 {[%clk 0:00:16]} 27. Rf1+ {[%clk 0:01:25]}  Ke7 {[%clk 0:00:17]} 28. Qg5+ {[%clk 0:01:23]}  Kf8 {[%clk 0:00:14]} 29. Qf6 {[%clk 0:01:17]} 1-0


[Site "https://www.chess.com"]

[Event "Titled Tuesday Blitz February 21 Early 2023"]
[White "Sargissyan, Sargis"]
[Black "Reprintsev, Alexander"]
[WhiteFideId "13303210"]
[BlackFideId "14100541"]
[WhiteElo "2234"]
[BlackElo "2253"]
[Result "1/2-1/2"]
[Round "11"]
[TimeControl "180+2"]
[Date "2023.02.21"]
[WhiteClock "0:00:05"]
[BlackClock "0:00:21"]

1. e4 {[%clk 0:03:00]}  d5 {[%clk 0:02:59]} 2. exd5 {[%clk 0:02:59]}  Qxd5 {[%clk 0:02:59]} 3. Nc3 {[%clk 0:03:00]}  Qa5 {[%clk 0:02:59]} 4. d4 {[%clk 0:03:00]}  Nf6 {[%clk 0:02:59]} 5. Bc4 {[%clk 0:03:01]}  Nc6 {[%clk 0:02:56]} 6. Nf3 {[%clk 0:02:58]}  Bg4 {[%clk 0:02:56]} 7. h3 {[%clk 0:02:58]}  Qh5 {[%clk 0:02:56]} 8. Be2 {[%clk 0:02:53]}  O-O-O {[%clk 0:02:56]} 9. O-O {[%clk 0:02:50]}  Nxd4 {[%clk 0:02:53]} 10. Nxd4 {[%clk 0:02:13]}  Bxe2 {[%clk 0:02:52]} 11. Ncxe2 {[%clk 0:02:06]}  e5 {[%clk 0:02:49]} 12. Be3 {[%clk 0:02:02]}  exd4 {[%clk 0:02:47]} 13. Nxd4 {[%clk 0:02:01]}  Bc5 {[%clk 0:02:36]} 14. Qxh5 {[%clk 0:01:57]}  Nxh5 {[%clk 0:02:36]} 15. Rad1 {[%clk 0:01:53]}  Rhe8 {[%clk 0:02:34]} 16. c3 {[%clk 0:01:34]}  h6 {[%clk 0:02:31]} 17. Nf5 {[%clk 0:01:26]}  Rxd1 {[%clk 0:02:29]} 18. Rxd1 {[%clk 0:01:25]}  Bxe3 {[%clk 0:02:29]} 19. Nxe3 {[%clk 0:01:20]}  Nf4 {[%clk 0:02:29]} 20. g3 {[%clk 0:01:17]}  Nxh3+ {[%clk 0:02:26]} 21. Kg2 {[%clk 0:01:17]}  Ng5 {[%clk 0:02:26]} 22. Nf5 {[%clk 0:01:15]}  a5 {[%clk 0:02:12]} 23. Rd2 {[%clk 0:01:10]}  g6 {[%clk 0:02:06]} 24. Nxh6 {[%clk 0:01:08]}  f5 {[%clk 0:02:06]} 25. f4 {[%clk 0:01:04]}  Ne4 {[%clk 0:02:06]} 26. Re2 {[%clk 0:01:02]}  Re7 {[%clk 0:02:00]} 27. g4 {[%clk 0:00:50]}  Rg7 {[%clk 0:01:57]} 28. Kf3 {[%clk 0:00:38]}  Nd6 {[%clk 0:01:57]} 29. b3 {[%clk 0:00:31]}  Rh7 {[%clk 0:01:57]} 30. g5 {[%clk 0:00:30]}  Rg7 {[%clk 0:01:46]} 31. Re6 {[%clk 0:00:29]}  Kd7 {[%clk 0:01:45]} 32. Re5 {[%clk 0:00:21]}  b6 {[%clk 0:01:38]} 33. Ke3 {[%clk 0:00:18]}  c6 {[%clk 0:01:31]} 34. Kd3 {[%clk 0:00:17]}  b5 {[%clk 0:01:28]} 35. a4 {[%clk 0:00:16]}  Re7 {[%clk 0:01:25]} 36. Rxe7+ {[%clk 0:00:12]}  Kxe7 {[%clk 0:01:25]} 37. Ng8+ {[%clk 0:00:13]}  Ke6 {[%clk 0:01:25]} 38. Nf6 {[%clk 0:00:13]}  Nb7 {[%clk 0:01:19]} 39. Kd4 {[%clk 0:00:12]}  c5+ {[%clk 0:01:17]} 40. Kd3 {[%clk 0:00:12]}  c4+ {[%clk 0:01:16]} 41. bxc4 {[%clk 0:00:13]}  bxa4 {[%clk 0:01:17]} 42. Nd5 {[%clk 0:00:10]}  Kd6 {[%clk 0:01:11]} 43. Kc2 {[%clk 0:00:09]}  Kc5 {[%clk 0:01:09]} 44. Ne7 {[%clk 0:00:09]}  Kxc4 {[%clk 0:01:07]} 45. Nxg6 {[%clk 0:00:09]}  Nc5 {[%clk 0:00:56]} 46. Ne5+ {[%clk 0:00:09]}  Kd5 {[%clk 0:00:55]} 47. g6 {[%clk 0:00:10]}  Ne6 {[%clk 0:00:55]} 48. Kb2 {[%clk 0:00:06]}  Ke4 {[%clk 0:00:54]} 49. g7 {[%clk 0:00:03]}  Nxg7 {[%clk 0:00:54]} 50. Ng6 {[%clk 0:00:03]}  Ne6 {[%clk 0:00:49]} 51. Ka3 {[%clk 0:00:04]}  Nxf4 {[%clk 0:00:49]} 52. Ne7 {[%clk 0:00:04]}  Ne2 {[%clk 0:00:31]} 53. Nxf5 {[%clk 0:00:05]}  Nxc3 {[%clk 0:00:31]} 54. Nd6+ {[%clk 0:00:04]}  Kd5 {[%clk 0:00:31]} 55. Nb5 {[%clk 0:00:04]}  Nxb5+ {[%clk 0:00:24]} 56. Kxa4 {[%clk 0:00:04]}  Na3 {[%clk 0:00:21]} 57. Kxa5 {[%clk 0:00:05]} 1/2-1/2


[Site "https://www.chess.com"]

[Event "Titled Tuesday Blitz February 21 Early 2023"]
[White "Arencibia Monduy, Antonio"]
[Black "Topalov, Aleksandar"]
[WhiteFideId "3507939"]
[BlackFideId "925659"]
[WhiteElo "2122"]
[BlackElo "2233"]
[Result "1-0"]
[Round "11"]
[TimeControl "180+2"]
[Date "2023.02.21"]
[WhiteClock "0:00:19"]
[BlackClock "0:00:04"]

1. e4 {[%clk 0:03:00]}  e6 {[%clk 0:02:59]} 2. d4 {[%clk 0:03:00]}  d5 {[%clk 0:03:00]} 3. Bd3 {[%clk 0:03:00]}  dxe4 {[%clk 0:02:59]} 4. Bxe4 {[%clk 0:03:01]}  Nf6 {[%clk 0:02:59]} 5. Bf3 {[%clk 0:03:01]}  c5 {[%clk 0:03:00]} 6. Ne2 {[%clk 0:02:58]}  Nc6 {[%clk 0:02:59]} 7. Bxc6+ {[%clk 0:02:57]}  bxc6 {[%clk 0:02:58]} 8. c3 {[%clk 0:02:57]}  cxd4 {[%clk 0:02:44]} 9. cxd4 {[%clk 0:02:55]}  Bb4+ {[%clk 0:02:44]} 10. Nbc3 {[%clk 0:02:54]}  O-O {[%clk 0:02:44]} 11. O-O {[%clk 0:02:54]}  c5 {[%clk 0:02:43]} 12. Bg5 {[%clk 0:02:54]}  cxd4 {[%clk 0:02:40]} 13. Nxd4 {[%clk 0:02:50]}  Bb7 {[%clk 0:02:34]} 14. a3 {[%clk 0:02:23]}  Be7 {[%clk 0:02:34]} 15. Nde2 {[%clk 0:01:59]}  Qb6 {[%clk 0:02:31]} 16. Be3 {[%clk 0:01:52]}  Qc6 {[%clk 0:02:26]} 17. f3 {[%clk 0:01:52]}  Rfd8 {[%clk 0:02:24]} 18. Qc2 {[%clk 0:01:33]}  a6 {[%clk 0:02:21]} 19. Rfe1 {[%clk 0:01:32]}  Rac8 {[%clk 0:02:17]} 20. Rac1 {[%clk 0:01:32]}  Nd5 {[%clk 0:02:05]} 21. Bd4 {[%clk 0:01:23]}  Bc5 {[%clk 0:01:58]} 22. Kh1 {[%clk 0:01:21]}  Bxd4 {[%clk 0:01:52]} 23. Nxd4 {[%clk 0:01:21]}  Qe8 {[%clk 0:01:52]} 24. Nde2 {[%clk 0:01:12]}  h6 {[%clk 0:01:49]} 25. Qb3 {[%clk 0:01:12]}  Rb8 {[%clk 0:01:46]} 26. Nxd5 {[%clk 0:01:11]}  Bxd5 {[%clk 0:01:46]} 27. Qc2 {[%clk 0:01:09]}  Rdc8 {[%clk 0:01:31]} 28. Nc3 {[%clk 0:01:09]}  Bb3 {[%clk 0:01:30]} 29. Qe2 {[%clk 0:01:07]}  a5 {[%clk 0:01:29]} 30. Ne4 {[%clk 0:01:05]}  Rxc1 {[%clk 0:01:02]} 31. Rxc1 {[%clk 0:01:05]}  Bd5 {[%clk 0:01:02]} 32. Nc3 {[%clk 0:01:01]}  Qc6 {[%clk 0:00:54]} 33. Rd1 {[%clk 0:00:59]}  Bc4 {[%clk 0:00:50]} 34. Qf2 {[%clk 0:00:57]}  Qb7 {[%clk 0:00:43]} 35. Rd2 {[%clk 0:00:57]}  Qc7 {[%clk 0:00:38]} 36. Qd4 {[%clk 0:00:52]}  e5 {[%clk 0:00:22]} 37. Qh4 {[%clk 0:00:47]}  Be6 {[%clk 0:00:19]} 38. h3 {[%clk 0:00:42]}  f6 {[%clk 0:00:17]} 39. Qf2 {[%clk 0:00:34]}  Rd8 {[%clk 0:00:13]} 40. Qe3 {[%clk 0:00:33]}  Rxd2 {[%clk 0:00:13]} 41. Qxd2 {[%clk 0:00:34]}  Bb3 {[%clk 0:00:12]} 42. Qd3 {[%clk 0:00:32]}  a4 {[%clk 0:00:11]} 43. Qd2 {[%clk 0:00:27]}  Qc6 {[%clk 0:00:09]} 44. Qd8+ {[%clk 0:00:26]}  Kh7 {[%clk 0:00:08]} 45. Qd3+ {[%clk 0:00:27]}  Kg8 {[%clk 0:00:08]} 46. Kh2 {[%clk 0:00:26]}  Kh8 {[%clk 0:00:06]} 47. Qd8+ {[%clk 0:00:23]}  Kh7 {[%clk 0:00:07]} 48. Qd3+ {[%clk 0:00:24]}  Kg8 {[%clk 0:00:07]} 49. h4 {[%clk 0:00:21]}  Qc7 {[%clk 0:00:06]} 50. Ne4 {[%clk 0:00:21]}  f5 {[%clk 0:00:04]} 51. Ng3 {[%clk 0:00:19]} 1-0


[Site "https://www.chess.com"]

[Event "Titled Tuesday Blitz February 21 Early 2023"]
[White "Balabayeva, Xeniya"]
[Black "Delgado Rosas, Fatima Alexandra"]
[WhiteFideId "13719688"]
[BlackFideId "6603963"]
[WhiteElo "2191"]
[BlackElo "1500"]
[Result "1-0"]
[Round "11"]
[TimeControl "180+2"]
[Date "2023.02.21"]
[WhiteClock "0:00:04"]
[BlackClock "0:01:01"]

1. e4 {[%clk 0:03:00]}  Nc6 {[%clk 0:02:59]} 2. Nf3 {[%clk 0:02:57]}  d5 {[%clk 0:03:00]} 3. exd5 {[%clk 0:02:42]}  Qxd5 {[%clk 0:03:01]} 4. Nc3 {[%clk 0:02:42]}  Qh5 {[%clk 0:03:01]} 5. Be2 {[%clk 0:02:41]}  Bg4 {[%clk 0:03:02]} 6. h3 {[%clk 0:02:37]}  Nf6 {[%clk 0:03:02]} 7. d3 {[%clk 0:02:36]}  O-O-O {[%clk 0:03:02]} 8. Be3 {[%clk 0:02:32]}  e5 {[%clk 0:03:02]} 9. O-O {[%clk 0:02:08]}  Bxf3 {[%clk 0:02:50]} 10. Bxf3 {[%clk 0:02:06]}  Qg6 {[%clk 0:02:51]} 11. Bxc6 {[%clk 0:02:05]}  bxc6 {[%clk 0:02:52]} 12. Qf3 {[%clk 0:02:05]}  Nd5 {[%clk 0:02:50]} 13. Bxa7 {[%clk 0:02:02]}  Bb4 {[%clk 0:02:08]} 14. Nxd5 {[%clk 0:01:41]}  cxd5 {[%clk 0:02:09]} 15. a3 {[%clk 0:01:40]}  Ba5 {[%clk 0:02:03]} 16. b4 {[%clk 0:01:37]}  Kb7 {[%clk 0:02:02]} 17. Be3 {[%clk 0:01:28]}  Bb6 {[%clk 0:02:02]} 18. Bxb6 {[%clk 0:01:28]}  cxb6 {[%clk 0:02:03]} 19. c4 {[%clk 0:01:22]}  e4 {[%clk 0:02:03]} 20. dxe4 {[%clk 0:01:20]}  dxe4 {[%clk 0:02:03]} 21. Qe2 {[%clk 0:01:16]}  Rd3 {[%clk 0:01:50]} 22. f3 {[%clk 0:00:56]}  e3 {[%clk 0:01:45]} 23. Rad1 {[%clk 0:00:29]}  Rhd8 {[%clk 0:01:45]} 24. f4 {[%clk 0:00:17]}  Qe4 {[%clk 0:01:37]} 25. Rxd3 {[%clk 0:00:15]}  Rxd3 {[%clk 0:01:33]} 26. a4 {[%clk 0:00:09]}  Qxc4 {[%clk 0:01:28]} 27. Kh2 {[%clk 0:00:05]}  Rd2 {[%clk 0:01:19]} 28. Qxc4 {[%clk 0:00:05]}  e2 {[%clk 0:01:02]} 29. Rc1 {[%clk 0:00:04]}  Rd7 {[%clk 0:01:01]} 30. Qc6+ {[%clk 0:00:04]} 1-0


[Site "https://www.chess.com"]